[Event "Titled Tuesday Blitz June 6 Late 2023"]
[White "Camilla_Lee"]
[Black "Ibarra Jerez, Jose Carlos"]
[BlackFideId "2226332"]
[WhiteElo "2493"]
[BlackElo "2631"]
[Result "0-1"]
[Round "1"]
[TimeControl "180+2"]
[Date "2023.06.07"]
[WhiteClock "0:01:16"]
[BlackClock "0:01:48"]
[Board "27"]

1. e4 {[%clk 0:03:00]}  c5 {[%clk 0:02:58]} 2. Nf3 {[%clk 0:03:00]}  e6 {[%clk 0:02:54]} 3. d4 {[%clk 0:03:00]}  cxd4 {[%clk 0:02:53]} 4. Nxd4 {[%clk 0:03:00]}  Bc5 {[%clk 0:02:52]} 5. Nb3 {[%clk 0:02:57]}  Bb6 {[%clk 0:02:52]} 6. Bd3 {[%clk 0:02:53]}  Ne7 {[%clk 0:02:51]} 7. O-O {[%clk 0:02:52]}  O-O {[%clk 0:02:51]} 8. Qe2 {[%clk 0:02:52]}  f5 {[%clk 0:02:50]} 9. Be3 {[%clk 0:02:50]}  f4 {[%clk 0:02:51]} 10. Bxb6 {[%clk 0:02:50]}  Qxb6 {[%clk 0:02:50]} 11. N1d2 {[%clk 0:02:50]}  Nbc6 {[%clk 0:02:48]} 12. Nc4 {[%clk 0:02:48]}  Qd8 {[%clk 0:02:45]} 13. e5 {[%clk 0:02:47]}  f3 {[%clk 0:02:43]} 14. gxf3 {[%clk 0:02:45]}  Nf5 {[%clk 0:02:38]} 15. Qe4 {[%clk 0:02:37]}  g6 {[%clk 0:02:24]} 16. Rad1 {[%clk 0:02:00]}  b6 {[%clk 0:02:23]} 17. Qg4 {[%clk 0:01:51]}  b5 {[%clk 0:02:17]} 18. Ne3 {[%clk 0:01:44]}  Nxe5 {[%clk 0:02:15]} 19. Qe4 {[%clk 0:01:41]}  Nh4 {[%clk 0:02:04]} 20. Kh1 {[%clk 0:01:32]}  Nhxf3 {[%clk 0:02:00]} 21. Rg1 {[%clk 0:01:20]}  d5 {[%clk 0:01:57]} 22. Qg4 {[%clk 0:01:16]}  Nxg4 {[%clk 0:01:48]} 0-1


[Site "https://www.chess.com"]

[Event "Titled Tuesday Blitz June 6 Late 2023"]
[White "Xiong, Jeffery"]
[Black "Bruedigam, Martin"]
[WhiteFideId "2047640"]
[BlackFideId "24608033"]
[WhiteElo "2726"]
[BlackElo "2331"]
[Result "1-0"]
[Round "1"]
[TimeControl "180+2"]
[Date "2023.06.07"]
[WhiteClock "0:01:51"]
[BlackClock "0:01:47"]
[Board "28"]

1. e4 {[%clk 0:02:58]}  c6 {[%clk 0:02:59]} 2. Nf3 {[%clk 0:02:57]}  d5 {[%clk 0:02:59]} 3. d3 {[%clk 0:02:58]}  dxe4 {[%clk 0:02:56]} 4. dxe4 {[%clk 0:02:59]}  Qxd1+ {[%clk 0:02:55]} 5. Kxd1 {[%clk 0:03:00]}  Nd7 {[%clk 0:02:55]} 6. Nfd2 {[%clk 0:02:32]}  g5 {[%clk 0:02:51]} 7. Nc4 {[%clk 0:02:22]}  f6 {[%clk 0:02:46]} 8. a4 {[%clk 0:02:17]}  h5 {[%clk 0:02:46]} 9. h4 {[%clk 0:02:16]}  g4 {[%clk 0:02:46]} 10. Nc3 {[%clk 0:02:16]}  Bh6 {[%clk 0:02:46]} 11. Be3 {[%clk 0:02:12]}  Bxe3 {[%clk 0:02:42]} 12. Nxe3 {[%clk 0:02:13]}  Ne5 {[%clk 0:02:40]} 13. Ke2 {[%clk 0:02:12]}  Nh6 {[%clk 0:02:38]} 14. f4 {[%clk 0:02:12]}  gxf3+ {[%clk 0:02:34]} 15. gxf3 {[%clk 0:02:12]}  Ng6 {[%clk 0:02:33]} 16. Kf2 {[%clk 0:02:12]}  Be6 {[%clk 0:02:17]} 17. Ne2 {[%clk 0:02:09]}  f5 {[%clk 0:02:14]} 18. Nd4 {[%clk 0:02:08]}  Bd7 {[%clk 0:02:05]} 19. exf5 {[%clk 0:02:08]}  Nf4 {[%clk 0:02:01]} 20. Rg1 {[%clk 0:02:03]}  Nd5 {[%clk 0:01:56]} 21. Nxd5 {[%clk 0:02:02]}  cxd5 {[%clk 0:01:57]} 22. Bd3 {[%clk 0:02:00]}  Kf7 {[%clk 0:01:54]} 23. Rae1 {[%clk 0:01:58]}  Rhg8 {[%clk 0:01:51]} 24. Rg5 {[%clk 0:01:58]}  Bxa4 {[%clk 0:01:47]} 25. Rxh5 {[%clk 0:01:56]}  Rh8 {[%clk 0:01:47]} 26. Re6 {[%clk 0:01:51]} 1-0


[Site "https://www.chess.com"]

[Event "Titled Tuesday Blitz June 6 Late 2023"]
[White "Zhigalko, Sergei"]
[Black "Mieles Palau, Daniel"]
[WhiteFideId "13502956"]
[BlackFideId "3600467"]
[WhiteElo "2626"]
[BlackElo "2344"]
[Result "0-1"]
[Round "1"]
[TimeControl "180+2"]
[Date "2023.06.07"]
[WhiteClock "0:00:01"]
[BlackClock "0:00:35"]
[Board "30"]

1. e4 {[%clk 0:03:00]}  c5 {[%clk 0:02:59]} 2. Nf3 {[%clk 0:03:00]}  Nc6 {[%clk 0:02:58]} 3. c3 {[%clk 0:03:00]}  Nf6 {[%clk 0:02:56]} 4. e5 {[%clk 0:03:00]}  Nd5 {[%clk 0:02:57]} 5. Bc4 {[%clk 0:03:00]}  Nb6 {[%clk 0:02:56]} 6. Bb3 {[%clk 0:03:01]}  d5 {[%clk 0:02:56]} 7. exd6 {[%clk 0:03:01]}  Qxd6 {[%clk 0:02:56]} 8. O-O {[%clk 0:03:01]}  Be6 {[%clk 0:02:42]} 9. Bxe6 {[%clk 0:03:01]}  Qxe6 {[%clk 0:02:41]} 10. a4 {[%clk 0:03:02]}  Qd7 {[%clk 0:02:12]} 11. a5 {[%clk 0:03:02]}  Nd5 {[%clk 0:02:12]} 12. d4 {[%clk 0:03:01]}  e6 {[%clk 0:02:12]} 13. a6 {[%clk 0:02:53]}  b6 {[%clk 0:02:11]} 14. Ne5 {[%clk 0:02:54]}  Nxe5 {[%clk 0:02:11]} 15. dxe5 {[%clk 0:02:55]}  Be7 {[%clk 0:02:10]} 16. Qg4 {[%clk 0:02:55]}  g6 {[%clk 0:02:05]} 17. Rd1 {[%clk 0:02:51]}  h5 {[%clk 0:01:56]} 18. Qf3 {[%clk 0:02:50]}  Qc6 {[%clk 0:01:51]} 19. Na3 {[%clk 0:02:38]}  O-O-O {[%clk 0:01:39]} 20. Bd2 {[%clk 0:02:01]}  Rhf8 {[%clk 0:01:22]} 21. c4 {[%clk 0:02:01]}  Nb4 {[%clk 0:01:20]} 22. Bxb4 {[%clk 0:01:54]}  Qxf3 {[%clk 0:01:18]} 23. gxf3 {[%clk 0:01:55]}  cxb4 {[%clk 0:01:19]} 24. Nb5 {[%clk 0:01:56]}  Kb8 {[%clk 0:01:17]} 25. Kg2 {[%clk 0:01:46]}  Rxd1 {[%clk 0:01:15]} 26. Rxd1 {[%clk 0:01:45]}  Rd8 {[%clk 0:01:14]} 27. Rxd8+ {[%clk 0:01:40]}  Bxd8 {[%clk 0:01:15]} 28. f4 {[%clk 0:01:36]}  Be7 {[%clk 0:01:13]} 29. b3 {[%clk 0:01:31]}  Bc5 {[%clk 0:01:12]} 30. Kf3 {[%clk 0:01:31]}  Be7 {[%clk 0:01:10]} 31. Ke4 {[%clk 0:01:29]}  Bc5 {[%clk 0:01:10]} 32. f3 {[%clk 0:01:27]}  Be7 {[%clk 0:01:09]} 33. Nd6 {[%clk 0:00:21]}  Bxd6 {[%clk 0:00:42]} 34. exd6 {[%clk 0:00:22]}  f6 {[%clk 0:00:43]} 35. c5 {[%clk 0:00:20]}  bxc5 {[%clk 0:00:40]} 36. Kd3 {[%clk 0:00:20]}  Kc8 {[%clk 0:00:38]} 37. Kc4 {[%clk 0:00:20]}  Kd7 {[%clk 0:00:38]} 38. Kxc5 {[%clk 0:00:21]}  g5 {[%clk 0:00:36]} 39. fxg5 {[%clk 0:00:22]}  fxg5 {[%clk 0:00:36]} 40. Kxb4 {[%clk 0:00:11]}  Kxd6 {[%clk 0:00:37]} 41. Kc4 {[%clk 0:00:11]}  Kc6 {[%clk 0:00:35]} 42. b4 {[%clk 0:00:07]}  Kb6 {[%clk 0:00:35]} 43. b5 {[%clk 0:00:07]}  g4 {[%clk 0:00:32]} 44. fxg4 {[%clk 0:00:04]}  hxg4 {[%clk 0:00:33]} 45. Kb4 {[%clk 0:00:05]}  e5 {[%clk 0:00:33]} 46. Kc4 {[%clk 0:00:05]}  e4 {[%clk 0:00:33]} 47. Kd4 {[%clk 0:00:05]}  Kxb5 {[%clk 0:00:34]} 48. Kxe4 {[%clk 0:00:05]}  Kxa6 {[%clk 0:00:34]} 49. Kf4 {[%clk 0:00:01]}  Kb6 {[%clk 0:00:35]} 50. Kxg4 {[%clk 0:00:01]}  a5 {[%clk 0:00:35]} 0-1


[Site "https://www.chess.com"]

[Event "Titled Tuesday Blitz June 6 Late 2023"]
[White "Urbina Perez, Juan Antonio"]
[Black "Zakhartsov, Vladimir"]
[WhiteFideId "2217368"]
[BlackFideId "4145097"]
[WhiteElo "2197"]
[BlackElo "2508"]
[Result "0-1"]
[Round "1"]
[TimeControl "180+2"]
[Date "2023.06.07"]
[WhiteClock "0:01:03"]
[BlackClock "0:00:55"]
[Board "31"]

1. e4 {[%clk 0:02:56]}  c5 {[%clk 0:02:53]} 2. Nf3 {[%clk 0:02:56]}  d6 {[%clk 0:02:50]} 3. Bb5+ {[%clk 0:02:56]}  Bd7 {[%clk 0:02:49]} 4. Bxd7+ {[%clk 0:02:54]}  Nxd7 {[%clk 0:02:50]} 5. O-O {[%clk 0:02:54]}  e6 {[%clk 0:02:50]} 6. c3 {[%clk 0:02:53]}  Ngf6 {[%clk 0:02:49]} 7. Qe2 {[%clk 0:02:53]}  Be7 {[%clk 0:02:48]} 8. d4 {[%clk 0:02:52]}  O-O {[%clk 0:02:48]} 9. Rd1 {[%clk 0:02:50]}  cxd4 {[%clk 0:02:28]} 10. cxd4 {[%clk 0:02:51]}  d5 {[%clk 0:02:28]} 11. e5 {[%clk 0:02:50]}  Ne4 {[%clk 0:02:28]} 12. Nbd2 {[%clk 0:02:49]}  Nxd2 {[%clk 0:02:27]} 13. Bxd2 {[%clk 0:02:50]}  Rc8 {[%clk 0:02:27]} 14. Bc3 {[%clk 0:02:46]}  a6 {[%clk 0:02:26]} 15. Rac1 {[%clk 0:02:45]}  b5 {[%clk 0:02:26]} 16. a3 {[%clk 0:02:42]}  Qb6 {[%clk 0:02:25]} 17. h4 {[%clk 0:02:40]}  h6 {[%clk 0:02:25]} 18. Rd3 {[%clk 0:02:36]}  a5 {[%clk 0:02:24]} 19. Rcd1 {[%clk 0:02:31]}  b4 {[%clk 0:02:22]} 20. axb4 {[%clk 0:02:32]}  axb4 {[%clk 0:02:21]} 21. Bd2 {[%clk 0:02:31]}  Rc2 {[%clk 0:02:19]} 22. g4 {[%clk 0:02:25]}  Rxb2 {[%clk 0:02:16]} 23. g5 {[%clk 0:02:25]}  h5 {[%clk 0:02:14]} 24. Ne1 {[%clk 0:02:15]}  g6 {[%clk 0:02:11]} 25. Ng2 {[%clk 0:02:15]}  Rc8 {[%clk 0:02:02]} 26. Nf4 {[%clk 0:02:15]}  Qb5 {[%clk 0:01:54]} 27. Qf3 {[%clk 0:02:07]}  b3 {[%clk 0:01:49]} 28. Be1 {[%clk 0:01:59]}  Nf8 {[%clk 0:01:44]} 29. Nxh5 {[%clk 0:01:48]}  gxh5 {[%clk 0:01:44]} 30. Qxh5 {[%clk 0:01:49]}  Ng6 {[%clk 0:01:36]} 31. Qg4 {[%clk 0:01:37]}  Rb1 {[%clk 0:01:22]} 32. h5 {[%clk 0:01:34]}  Rxd1 {[%clk 0:01:21]} 33. Rxd1 {[%clk 0:01:35]}  b2 {[%clk 0:01:07]} 34. hxg6 {[%clk 0:01:34]}  b1=Q {[%clk 0:01:07]} 35. gxf7+ {[%clk 0:01:29]}  Kxf7 {[%clk 0:01:07]} 36. Bd2 {[%clk 0:01:11]}  Qf5 {[%clk 0:00:59]} 37. Qh5+ {[%clk 0:01:10]}  Qg6 {[%clk 0:00:59]} 38. Qf3+ {[%clk 0:01:09]}  Kg8 {[%clk 0:00:58]} 39. Qh3 {[%clk 0:01:03]}  Qbd3 {[%clk 0:00:55]} 0-1


[Site "https://www.chess.com"]

[Event "Titled Tuesday Blitz June 6 Late 2023"]
[White "Arencibia Monduy, Antonio"]
[Black "Grigoriants, Sergey"]
[WhiteFideId "3507939"]
[BlackFideId "4130804"]
[WhiteElo "2489"]
[BlackElo "2502"]
[Result "1/2-1/2"]
[Round "1"]
[TimeControl "180+2"]
[Date "2023.06.07"]
[WhiteClock "0:00:04"]
[BlackClock "0:00:04"]
[Board "33"]

1. e4 {[%clk 0:03:00]}  c5 {[%clk 0:02:56]} 2. Nf3 {[%clk 0:03:00]}  Nc6 {[%clk 0:02:56]} 3. c3 {[%clk 0:03:01]}  e6 {[%clk 0:02:55]} 4. d4 {[%clk 0:02:56]}  d5 {[%clk 0:02:55]} 5. exd5 {[%clk 0:02:56]}  Qxd5 {[%clk 0:02:55]} 6. Be2 {[%clk 0:02:55]}  Nf6 {[%clk 0:02:54]} 7. O-O {[%clk 0:02:56]}  cxd4 {[%clk 0:02:41]} 8. cxd4 {[%clk 0:02:53]}  Be7 {[%clk 0:02:40]} 9. Nc3 {[%clk 0:02:54]}  Qd6 {[%clk 0:02:40]} 10. Nb5 {[%clk 0:02:53]}  Qd8 {[%clk 0:02:34]} 11. Bf4 {[%clk 0:02:53]}  Nd5 {[%clk 0:02:34]} 12. Bg3 {[%clk 0:02:53]}  O-O {[%clk 0:02:34]} 13. Bd3 {[%clk 0:02:52]}  Bd7 {[%clk 0:02:13]} 14. Rc1 {[%clk 0:02:49]}  Ncb4 {[%clk 0:02:09]} 15. a3 {[%clk 0:02:39]}  Nxd3 {[%clk 0:02:05]} 16. Qxd3 {[%clk 0:02:40]}  Bxb5 {[%clk 0:01:12]} 17. Qxb5 {[%clk 0:02:40]}  Qb6 {[%clk 0:01:12]} 18. Qxb6 {[%clk 0:02:34]}  axb6 {[%clk 0:01:13]} 19. Rc2 {[%clk 0:02:29]}  Rfc8 {[%clk 0:01:06]} 20. Rfc1 {[%clk 0:02:29]}  Rxc2 {[%clk 0:01:06]} 21. Rxc2 {[%clk 0:02:30]}  Kf8 {[%clk 0:01:06]} 22. Kf1 {[%clk 0:02:20]}  Ke8 {[%clk 0:01:01]} 23. Ke2 {[%clk 0:02:20]}  f6 {[%clk 0:01:00]} 24. Kd3 {[%clk 0:02:16]}  Kd7 {[%clk 0:00:59]} 25. Nd2 {[%clk 0:02:09]}  b5 {[%clk 0:00:56]} 26. Ke2 {[%clk 0:01:14]}  b4 {[%clk 0:00:49]} 27. axb4 {[%clk 0:01:13]}  Bxb4 {[%clk 0:00:49]} 28. Ne4 {[%clk 0:01:11]}  Ra2 {[%clk 0:00:45]} 29. Kd3 {[%clk 0:01:06]}  f5 {[%clk 0:00:20]} 30. Nc3 {[%clk 0:01:05]}  Bxc3 {[%clk 0:00:17]} 31. bxc3 {[%clk 0:01:06]}  Rxc2 {[%clk 0:00:13]} 32. Kxc2 {[%clk 0:01:06]}  b5 {[%clk 0:00:12]} 33. Be5 {[%clk 0:01:05]}  g6 {[%clk 0:00:12]} 34. Kb3 {[%clk 0:01:00]}  Kc6 {[%clk 0:00:12]} 35. c4 {[%clk 0:00:58]}  bxc4+ {[%clk 0:00:12]} 36. Kxc4 {[%clk 0:00:59]}  Nb6+ {[%clk 0:00:12]} 37. Kd3 {[%clk 0:00:53]}  Kd5 {[%clk 0:00:13]} 38. h4 {[%clk 0:00:52]}  Nc4 {[%clk 0:00:13]} 39. Bf4 {[%clk 0:00:49]}  Na3 {[%clk 0:00:12]} 40. Be5 {[%clk 0:00:47]}  Nb5 {[%clk 0:00:11]} 41. Bf6 {[%clk 0:00:47]}  Na7 {[%clk 0:00:10]} 42. f3 {[%clk 0:00:46]}  Nc6 {[%clk 0:00:11]} 43. Bg7 {[%clk 0:00:46]}  h5 {[%clk 0:00:10]} 44. Bf6 {[%clk 0:00:46]}  Nb8 {[%clk 0:00:07]} 45. Ke3 {[%clk 0:00:43]}  Nc6 {[%clk 0:00:06]} 46. Kd3 {[%clk 0:00:37]}  f4 {[%clk 0:00:04]} 47. Bg7 {[%clk 0:00:34]}  Ne7 {[%clk 0:00:04]} 48. Bf6 {[%clk 0:00:32]}  Nf5 {[%clk 0:00:04]} 49. Bg5 {[%clk 0:00:16]}  Nxd4 {[%clk 0:00:04]} 50. Bxf4 {[%clk 0:00:15]}  Nf5 {[%clk 0:00:04]} 51. Bg5 {[%clk 0:00:13]}  e5 {[%clk 0:00:05]} 52. g4 {[%clk 0:00:10]}  Nd4 {[%clk 0:00:04]} 53. gxh5 {[%clk 0:00:09]}  gxh5 {[%clk 0:00:05]} 54. Ke3 {[%clk 0:00:09]}  Nf5+ {[%clk 0:00:04]} 55. Ke2 {[%clk 0:00:08]}  Kd4 {[%clk 0:00:04]} 56. Bd8 {[%clk 0:00:07]}  Ng3+ {[%clk 0:00:03]} 57. Kf2 {[%clk 0:00:08]}  Nf5 {[%clk 0:00:04]} 58. Bb6+ {[%clk 0:00:06]}  Kd5 {[%clk 0:00:04]} 59. Bd8 {[%clk 0:00:06]}  Nd4 {[%clk 0:00:03]} 60. Bg5 {[%clk 0:00:06]}  Ne6 {[%clk 0:00:03]} 61. Bf6 {[%clk 0:00:05]}  Kd4 {[%clk 0:00:03]} 62. Ke2 {[%clk 0:00:05]}  Nf4+ {[%clk 0:00:03]} 63. Kf2 {[%clk 0:00:05]}  Nd5 {[%clk 0:00:04]} 64. Bg5 {[%clk 0:00:05]}  Nc3 {[%clk 0:00:04]} 65. Bf6 {[%clk 0:00:04]}  Kd5 {[%clk 0:00:05]} 66. Bg5 {[%clk 0:00:04]}  Nb5 {[%clk 0:00:05]} 67. Ke3 {[%clk 0:00:04]}  Nd4 {[%clk 0:00:05]} 68. f4 {[%clk 0:00:03]}  Nf5+ {[%clk 0:00:05]} 69. Kf3 {[%clk 0:00:04]}  e4+ {[%clk 0:00:06]} 70. Ke2 {[%clk 0:00:04]}  Kd4 {[%clk 0:00:06]} 71. Bf6+ {[%clk 0:00:04]}  Kc4 {[%clk 0:00:06]} 72. Bg5 {[%clk 0:00:04]}  Kd5 {[%clk 0:00:06]} 73. Bf6 {[%clk 0:00:03]}  Ng3+ {[%clk 0:00:06]} 74. Ke3 {[%clk 0:00:02]}  Nf5+ {[%clk 0:00:07]} 75. Ke2 {[%clk 0:00:02]}  Ke6 {[%clk 0:00:07]} 76. Bg5 {[%clk 0:00:02]}  Kd6 {[%clk 0:00:08]} 77. Bf6 {[%clk 0:00:02]}  Kd5 {[%clk 0:00:08]} 78. Bg5 {[%clk 0:00:03]}  Kc4 {[%clk 0:00:06]} 79. Bf6 {[%clk 0:00:03]}  Kc5 {[%clk 0:00:06]} 80. Bg5 {[%clk 0:00:04]}  Kd5 {[%clk 0:00:04]} 81. Bf6 {[%clk 0:00:04]} 1/2-1/2


[Site "https://www.chess.com"]

[Event "Titled Tuesday Blitz June 6 Late 2023"]
[White "Pasti, Aron"]
[Black "Hansen, Eric"]
[WhiteFideId "785857"]
[BlackFideId "2606771"]
[WhiteElo "2173"]
[BlackElo "2561"]
[Result "0-1"]
[Round "1"]
[TimeControl "180+2"]
[Date "2023.06.07"]
[WhiteClock "0:00:56"]
[BlackClock "0:01:17"]
[Board "35"]

1. e4 {[%clk 0:02:58]}  c5 {[%clk 0:02:59]} 2. Nf3 {[%clk 0:02:56]}  Nc6 {[%clk 0:02:59]} 3. d4 {[%clk 0:02:56]}  cxd4 {[%clk 0:02:52]} 4. Nxd4 {[%clk 0:02:57]}  Nf6 {[%clk 0:02:50]} 5. Nc3 {[%clk 0:02:57]}  d6 {[%clk 0:02:51]} 6. Bg5 {[%clk 0:02:56]}  Bd7 {[%clk 0:02:49]} 7. Qd2 {[%clk 0:02:54]}  a6 {[%clk 0:02:48]} 8. O-O-O {[%clk 0:02:53]}  e6 {[%clk 0:02:48]} 9. f4 {[%clk 0:02:52]}  h6 {[%clk 0:02:48]} 10. Bh4 {[%clk 0:02:50]}  Rc8 {[%clk 0:02:27]} 11. Nxc6 {[%clk 0:02:24]}  Bxc6 {[%clk 0:02:27]} 12. Qe1 {[%clk 0:02:25]}  Be7 {[%clk 0:02:15]} 13. e5 {[%clk 0:02:22]}  Nd5 {[%clk 0:02:14]} 14. Bxe7 {[%clk 0:02:18]}  Qxe7 {[%clk 0:02:14]} 15. Ne4 {[%clk 0:01:51]}  dxe5 {[%clk 0:02:14]} 16. fxe5 {[%clk 0:01:52]}  O-O {[%clk 0:02:15]} 17. Kb1 {[%clk 0:01:51]}  Ba4 {[%clk 0:02:02]} 18. Bd3 {[%clk 0:01:41]}  Bb5 {[%clk 0:01:36]} 19. Nd6 {[%clk 0:01:19]}  Bxd3 {[%clk 0:01:29]} 20. Nxc8 {[%clk 0:01:15]}  Bxc2+ {[%clk 0:01:30]} 21. Kxc2 {[%clk 0:01:16]}  Rxc8+ {[%clk 0:01:30]} 22. Kb1 {[%clk 0:01:17]}  Qg5 {[%clk 0:01:30]} 23. Qe4 {[%clk 0:01:16]}  g6 {[%clk 0:01:19]} 24. Rc1 {[%clk 0:01:14]}  Rd8 {[%clk 0:01:19]} 25. Rhd1 {[%clk 0:01:10]}  Kg7 {[%clk 0:01:19]} 26. Rc7 {[%clk 0:00:56]}  Nxc7 {[%clk 0:01:17]} 0-1


[Site "https://www.chess.com"]

[Event "Titled Tuesday Blitz June 6 Late 2023"]
[White "Li, Ruifeng"]
[Black "ArchibaldCerveza29"]
[WhiteFideId "2061074"]
[WhiteElo "2441"]
[BlackElo "2484"]
[Result "1-0"]
[Round "1"]
[TimeControl "180+2"]
[Date "2023.06.07"]
[WhiteClock "0:00:23"]
[BlackClock "0:00:07"]
[Board "36"]

1. b3 {[%clk 0:02:58]}  e5 {[%clk 0:02:59]} 2. Bb2 {[%clk 0:02:59]}  Nc6 {[%clk 0:02:59]} 3. Nf3 {[%clk 0:02:57]}  e4 {[%clk 0:02:56]} 4. Nd4 {[%clk 0:02:57]}  Nf6 {[%clk 0:02:55]} 5. e3 {[%clk 0:02:56]}  d5 {[%clk 0:02:54]} 6. Nxc6 {[%clk 0:02:53]}  bxc6 {[%clk 0:02:54]} 7. d3 {[%clk 0:02:54]}  Bd6 {[%clk 0:02:52]} 8. Nd2 {[%clk 0:02:52]}  Qe7 {[%clk 0:02:50]} 9. dxe4 {[%clk 0:02:49]}  Nxe4 {[%clk 0:02:51]} 10. Nxe4 {[%clk 0:02:46]}  Qxe4 {[%clk 0:02:52]} 11. Qd3 {[%clk 0:02:37]}  Bf5 {[%clk 0:02:48]} 12. Qxe4+ {[%clk 0:02:36]}  Bxe4 {[%clk 0:02:49]} 13. O-O-O {[%clk 0:02:36]}  O-O {[%clk 0:02:47]} 14. Bd3 {[%clk 0:02:34]}  Rfe8 {[%clk 0:02:41]} 15. h3 {[%clk 0:02:24]}  f6 {[%clk 0:02:39]} 16. Bxe4 {[%clk 0:02:21]}  Rxe4 {[%clk 0:02:40]} 17. Rd4 {[%clk 0:02:21]}  Rae8 {[%clk 0:02:38]} 18. Rhd1 {[%clk 0:02:22]}  Kf7 {[%clk 0:02:37]} 19. c4 {[%clk 0:02:16]}  dxc4 {[%clk 0:02:36]} 20. Rxc4 {[%clk 0:02:16]}  Rxc4+ {[%clk 0:02:35]} 21. bxc4 {[%clk 0:02:16]}  c5 {[%clk 0:02:27]} 22. Kc2 {[%clk 0:02:16]}  Rb8 {[%clk 0:02:23]} 23. Bc3 {[%clk 0:02:14]}  Ke6 {[%clk 0:02:20]} 24. Rb1 {[%clk 0:02:00]}  Rb6 {[%clk 0:02:19]} 25. Rb3 {[%clk 0:01:53]}  Ra6 {[%clk 0:02:13]} 26. Kb2 {[%clk 0:01:50]}  Rb6 {[%clk 0:01:20]} 27. Kc2 {[%clk 0:01:41]}  Ra6 {[%clk 0:01:19]} 28. a3 {[%clk 0:01:42]}  Rb6 {[%clk 0:01:19]} 29. Ba5 {[%clk 0:01:39]}  Ra6 {[%clk 0:01:19]} 30. Bd2 {[%clk 0:01:40]}  Rb6 {[%clk 0:01:17]} 31. a4 {[%clk 0:01:38]}  Ke5 {[%clk 0:00:58]} 32. a5 {[%clk 0:01:34]}  Rxb3 {[%clk 0:00:59]} 33. Kxb3 {[%clk 0:01:34]}  Ke4 {[%clk 0:00:59]} 34. Kc2 {[%clk 0:01:35]}  h5 {[%clk 0:00:53]} 35. f3+ {[%clk 0:01:35]}  Ke5 {[%clk 0:00:54]} 36. a6 {[%clk 0:01:32]}  c6 {[%clk 0:00:53]} 37. Ba5 {[%clk 0:01:30]}  Bb8 {[%clk 0:00:52]} 38. Kd3 {[%clk 0:01:29]}  g6 {[%clk 0:00:50]} 39. g4 {[%clk 0:01:27]}  hxg4 {[%clk 0:00:49]} 40. hxg4 {[%clk 0:01:27]}  Ke6 {[%clk 0:00:49]} 41. e4 {[%clk 0:01:11]}  Ke5 {[%clk 0:00:45]} 42. Bc3+ {[%clk 0:01:08]}  Ke6 {[%clk 0:00:45]} 43. Ke3 {[%clk 0:01:02]}  g5 {[%clk 0:00:44]} 44. Ke2 {[%clk 0:01:01]}  Bf4 {[%clk 0:00:39]} 45. Bd2 {[%clk 0:00:58]}  Be5 {[%clk 0:00:38]} 46. Be3 {[%clk 0:00:57]}  Bd4 {[%clk 0:00:36]} 47. Kd3 {[%clk 0:00:46]}  Ke5 {[%clk 0:00:28]} 48. Bd2 {[%clk 0:00:30]}  Ke6 {[%clk 0:00:19]} 49. f4 {[%clk 0:00:30]}  Bf2 {[%clk 0:00:16]} 50. fxg5 {[%clk 0:00:29]}  fxg5 {[%clk 0:00:12]} 51. Bxg5 {[%clk 0:00:30]}  Bg3 {[%clk 0:00:07]} 52. Be3 {[%clk 0:00:29]}  Bd6 {[%clk 0:00:06]} 53. Ke2 {[%clk 0:00:28]}  Ke5 {[%clk 0:00:06]} 54. Kf3 {[%clk 0:00:29]}  Be7 {[%clk 0:00:05]} 55. g5 {[%clk 0:00:28]}  Bf8 {[%clk 0:00:04]} 56. g6 {[%clk 0:00:23]}  Bg7 {[%clk 0:00:04]} 57. Bf4+ {[%clk 0:00:24]}  Kd4 {[%clk 0:00:05]} 58. Bb8 {[%clk 0:00:24]}  Kxc4 {[%clk 0:00:05]} 59. Kf4 {[%clk 0:00:23]}  Kb5 {[%clk 0:00:04]} 60. Be5 {[%clk 0:00:23]}  Bh6+ {[%clk 0:00:04]} 61. Kf5 {[%clk 0:00:21]}  c4 {[%clk 0:00:05]} 62. g7 {[%clk 0:00:21]}  Bxg7 {[%clk 0:00:04]} 63. Bxg7 {[%clk 0:00:22]}  Kb4 {[%clk 0:00:03]} 64. e5 {[%clk 0:00:22]}  c3 {[%clk 0:00:04]} 65. e6 {[%clk 0:00:23]}  c2 {[%clk 0:00:04]} 66. Bh6 {[%clk 0:00:23]}  Kc3 {[%clk 0:00:02]} 67. e7 {[%clk 0:00:23]}  Kb2 {[%clk 0:00:03]} 68. e8=Q {[%clk 0:00:23]}  c5 {[%clk 0:00:04]} 69. Qb5+ {[%clk 0:00:23]}  Ka2 {[%clk 0:00:04]} 70. Qxc5 {[%clk 0:00:21]}  Kb2 {[%clk 0:00:05]} 71. Qb4+ {[%clk 0:00:21]}  Ka2 {[%clk 0:00:05]} 72. Qc4+ {[%clk 0:00:21]}  Kb2 {[%clk 0:00:05]} 73. Bg7+ {[%clk 0:00:22]}  Kb1 {[%clk 0:00:05]} 74. Qb3+ {[%clk 0:00:22]}  Kc1 {[%clk 0:00:05]} 75. Bh6+ {[%clk 0:00:23]}  Kd1 {[%clk 0:00:05]} 76. Qd3+ {[%clk 0:00:22]}  Ke1 {[%clk 0:00:06]} 77. Qxc2 {[%clk 0:00:22]}  Kf1 {[%clk 0:00:06]} 78. Be3 {[%clk 0:00:22]}  Ke1 {[%clk 0:00:06]} 79. Qd2+ {[%clk 0:00:22]}  Kf1 {[%clk 0:00:07]} 80. Qf2# {[%clk 0:00:23]} 1-0


[Site "https://www.chess.com"]

[Event "Titled Tuesday Blitz June 6 Late 2023"]
[White "Svane, Frederik"]
[Black "Estrada Nieto, Julian"]
[WhiteFideId "12923044"]
[BlackFideId "5101018"]
[WhiteElo "2502"]
[BlackElo "2161"]
[Result "1-0"]
[Round "1"]
[TimeControl "180+2"]
[Date "2023.06.07"]
[WhiteClock "0:00:03"]
[BlackClock "0:00:11"]
[Board "38"]

1. e4 {[%clk 0:03:00]}  e5 {[%clk 0:03:00]} 2. Nf3 {[%clk 0:03:00]}  Nc6 {[%clk 0:03:00]} 3. Bb5 {[%clk 0:03:01]}  a6 {[%clk 0:03:01]} 4. Ba4 {[%clk 0:03:00]}  Nf6 {[%clk 0:03:01]} 5. O-O {[%clk 0:02:54]}  Be7 {[%clk 0:02:59]} 6. d3 {[%clk 0:02:52]}  b5 {[%clk 0:02:57]} 7. Bb3 {[%clk 0:02:51]}  d6 {[%clk 0:02:58]} 8. a3 {[%clk 0:02:51]}  O-O {[%clk 0:02:58]} 9. Nc3 {[%clk 0:02:49]}  Na5 {[%clk 0:02:57]} 10. Ba2 {[%clk 0:02:50]}  c5 {[%clk 0:02:58]} 11. b4 {[%clk 0:02:48]}  cxb4 {[%clk 0:02:52]} 12. axb4 {[%clk 0:02:49]}  Nc6 {[%clk 0:02:53]} 13. Nd5 {[%clk 0:02:50]}  Be6 {[%clk 0:02:51]} 14. Nxf6+ {[%clk 0:02:45]}  Bxf6 {[%clk 0:02:50]} 15. Bxe6 {[%clk 0:02:46]}  fxe6 {[%clk 0:02:50]} 16. c3 {[%clk 0:02:46]}  d5 {[%clk 0:02:41]} 17. Qb3 {[%clk 0:02:39]}  Qd6 {[%clk 0:02:41]} 18. Ra2 {[%clk 0:02:21]}  Rfb8 {[%clk 0:02:32]} 19. Bd2 {[%clk 0:01:58]}  a5 {[%clk 0:02:22]} 20. bxa5 {[%clk 0:01:58]}  Rxa5 {[%clk 0:02:13]} 21. Rxa5 {[%clk 0:01:55]}  Nxa5 {[%clk 0:02:13]} 22. Qa2 {[%clk 0:01:55]}  dxe4 {[%clk 0:02:06]} 23. Ng5 {[%clk 0:01:17]}  Bxg5 {[%clk 0:01:29]} 24. Bxg5 {[%clk 0:01:18]}  Nb7 {[%clk 0:01:12]} 25. dxe4 {[%clk 0:01:15]}  Nc5 {[%clk 0:01:08]} 26. f3 {[%clk 0:00:58]}  Qc6 {[%clk 0:00:56]} 27. h3 {[%clk 0:00:17]}  Na4 {[%clk 0:00:47]} 28. Bd2 {[%clk 0:00:15]}  Rd8 {[%clk 0:00:38]} 29. Kh2 {[%clk 0:00:12]}  Qc4 {[%clk 0:00:36]} 30. Qc2 {[%clk 0:00:09]}  Qxf1 {[%clk 0:00:35]} 31. Bg5 {[%clk 0:00:06]}  Rd1 {[%clk 0:00:17]} 32. Qb3 {[%clk 0:00:03]}  Qc4 {[%clk 0:00:15]} 33. Qxd1 {[%clk 0:00:03]}  h6 {[%clk 0:00:15]} 34. Qd8+ {[%clk 0:00:03]}  Kh7 {[%clk 0:00:15]} 35. Be7 {[%clk 0:00:03]}  Qxc3 {[%clk 0:00:13]} 36. Bd6 {[%clk 0:00:02]}  Qd2 {[%clk 0:00:11]} 37. Qc7 {[%clk 0:00:03]}  Qf4+ {[%clk 0:00:11]} 38. Kh1 {[%clk 0:00:03]}  Qc1+ {[%clk 0:00:11]} 39. Qxc1 {[%clk 0:00:03]} 1-0


[Site "https://www.chess.com"]